fUST/lending_fUST_20241017
["ID","MTS","AMOUNT","RATE_DAILY","PERIOD"]
[340385938,1729157073106,-1177.7,0.00041369,60]
[340385939,1729157073146,-500.0,0.00041369,60]
[340385940,1729157073186,-500.0,0.00041369,60]
[340385941,1729157073226,-500.0,0.00041369,60]
[340385942,1729157073267,-1002.78,0.00041369,60]
[340385943,1729157073306,-500.0,0.00041369,60]
[340385944,1729157073347,-500.0,0.00041369,60]
[340385945,1729157073387,-500.0,0.00041369,60]
[340385946,1729157073425,-500.0,0.00041369,60]
[340385947,1729157073465,-796.65,0.00041369,60]
[340385948,1729157073506,-767.61,0.00041369,60]
[340385949,1729157073546,-500.0,0.00041369,60]
[340385950,1729157073585,-249.07837589,0.00041369,60]
[340385951,1729157073818,-425.64449181,0.00041369,60]
[340385952,1729157073860,-500.0,0.00041369,60]
[340385953,1729157073899,-500.0,0.00041369,60]
[340385954,1729157073940,-502.32,0.00041369,60]
[340385955,1729157073979,-1996.04,0.00041369,60]
[340385956,1729157074017,-668.0,0.00041369,60]
[340385957,1729157074056,-1177.7,0.00041643,60]
[340385958,1729157074099,-500.0,0.00041643,60]
[340385959,1729157074140,-500.0,0.00041643,60]
[340385960,1729157074180,-500.0,0.00041643,60]
[340385961,1729157074224,-1002.78,0.00041643,60]
[340385962,1729157074266,-500.0,0.00041643,60]
[340385963,1729157074307,-500.0,0.00041643,60]
[340385964,1729157074347,-531.8394777,0.00041643,60]
[340385965,1729157074388,-500.0,0.00041643,60]
[340385966,1729157074428,-796.65,0.00041643,60]
[340385967,1729157074467,-767.61,0.00041643,60]
[340385968,1729157074504,-500.0,0.00041643,60]
[340385969,1729157074541,-500.0,0.00041643,60]
[340385970,1729157074579,-500.0,0.00041643,60]
[340385971,1729157074617,-502.32,0.00041643,60]
[340385972,1729157074658,-1996.04,0.00041643,60]
[340385973,1729157074698,-668.0,0.00041643,60]
[340385974,1729157074738,-1177.7,0.00041917,60]
[340385975,1729157074777,-500.0,0.00041917,60]
[340385976,1729157074817,-500.0,0.00041917,60]
[340385977,1729157074859,-499.61782013,0.00041917,60]
[340385978,1729157074902,-1002.78,0.00041917,60]
[340385979,1729157074945,-500.0,0.00041917,60]
[340385980,1729157074986,-500.0,0.00041917,60]
[340385981,1729157075024,-508.47845696,0.00041917,60]
[340385982,1729157075063,-796.65,0.00041917,60]
[340385983,1729157075105,-767.61,0.00041917,60]
[340385984,1729157075146,-500.0,0.00041917,60]
[340385985,1729157075187,-500.0,0.00041917,60]
[340385986,1729157075226,-500.0,0.00041917,60]
[340385987,1729157075267,-502.32,0.00041917,60]
[340385988,1729157075306,-1996.04,0.00041917,60]
[340385989,1729157075346,-668.0,0.00041917,60]
[340385990,1729157075384,-12188.42758857,0.0004204,120]
[340385991,1729157075423,-1177.7,0.00042191,60]
[340385992,1729157075460,-500.0,0.00042191,60]
[340385993,1729157075496,-500.0,0.00042191,60]
[340385994,1729157075532,-1002.78,0.00042191,60]
[340385995,1729157075571,-500.0,0.00042191,60]
[340385996,1729157075611,-500.0,0.00042191,60]
[340385997,1729157075650,-796.65,0.00042191,60]
[340385998,1729157075689,-767.61,0.00042191,60]
[340385999,1729157075726,-500.0,0.00042191,60]
[340386000,1729157075765,-500.0,0.00042191,60]
[340386001,1729157075802,-500.0,0.00042191,60]
[340386002,1729157075838,-502.32,0.00042191,60]
[340386003,1729157075878,-1996.04,0.00042191,60]
[340386004,1729157075917,-668.0,0.00042191,60]
[340386005,1729157075957,-1177.7,0.00042465,60]
[340386006,1729157075997,-500.0,0.00042465,60]
[340386007,1729157076034,-500.0,0.00042465,60]
[340386008,1729157076073,-1002.78,0.00042465,60]
[340386009,1729157076115,-589.26129175,0.00042465,60]
[340386010,1729157076155,-500.0,0.00042465,60]
[340386011,1729157076196,-796.65,0.00042465,60]
[340386012,1729157076234,-767.61,0.00042465,60]
[340386013,1729157076272,-500.0,0.00042465,60]
[340386014,1729157076309,-500.0,0.00042465,60]
[340386015,1729157076347,-500.0,0.00042465,60]
[340386016,1729157076382,-502.32,0.00042465,60]
[340386017,1729157076417,-1996.04,0.00042465,60]
[340386018,1729157076453,-668.0,0.00042465,60]
[340386019,1729157076491,-839.20306117,0.00042739,60]
[340386020,1729157076527,-500.0,0.00042739,60]
[340386021,1729157076566,-151.25184105,0.00042739,60]
[340386022,1729157076609,-500.0,0.00042739,60]
[340386023,1729157076651,-500.0,0.00042739,60]
[340386024,1729157076686,-500.0,0.00042739,60]
[340386025,1729157076721,-500.0,0.00042739,60]
[340386026,1729157076757,-512.86,0.00042739,60]
[340386027,1729157076793,-500.0,0.00042739,60]
[340386028,1729157076831,-500.0,0.00042739,60]
[340386029,1729157076869,-1055.28,0.00042739,60]
[340386030,1729157076917,-861.18,0.00042739,60]
[340386031,1729157076959,-905.29,0.00042739,60]
[340386032,1729157076996,-500.0,0.00042739,60]
[340386033,1729157077034,-1174.01,0.00042739,60]
[340386034,1729157077074,-522.36,0.00042739,60]
[340386035,1729157077112,-593.86,0.00042739,60]
[340386036,1729157077155,-500.0,0.00042739,60]
[340386037,1729157077193,-4800.3,0.00042739,60]
[340386038,1729157077234,-563.12874465,0.00042739,60]
[340386039,1729157077272,-440.77375891,0.00042739,60]
[340386040,1729157077310,-238.54950747,0.00042739,60]
[340386041,1729157077347,-548.64,0.00042739,60]
[340386042,1729157077385,-5161.34,0.00042739,60]
[340386043,1729157077422,-971.22,0.00042739,60]
[340386044,1729157077460,-500.0,0.00042739,60]
[340386045,1729157077496,-1038.67,0.00042739,60]
[340386046,1729157077728,-500.0,0.00042739,60]
[340386047,1729157077766,-1088.09,0.00042739,60]
[340386048,1729157077803,-500.0,0.00042739,60]
[340386049,1729157077840,-2534.2,0.00042739,60]
[340386050,1729157077877,-966.99,0.00042739,60]
[340386051,1729157077916,-876.41,0.00042739,60]
[340386052,1729157077954,-500.0,0.00042739,60]
[340386053,1729157077991,-636.20552402,0.00042739,60]
[340386054,1729157078028,-3258.44,0.00042739,60]
[340386055,1729157078066,-500.0,0.00042739,60]
[340386056,1729157078108,-559.19461934,0.00042739,60]
[340386057,1729157078148,-500.0,0.00042739,60]
[340386058,1729157078187,-500.0,0.00042739,60]
[340386059,1729157078226,-500.0,0.00042739,60]
[340386060,1729157078264,-500.0,0.00042739,60]
[340386061,1729157078301,-515.07537597,0.00042739,60]
[340386062,1729157078338,-2603.18,0.00042739,60]
[340386063,1729157078376,-500.0,0.00042739,60]
[340386064,1729157078411,-1334.81,0.00042739,60]
[340386065,1729157078448,-988.07,0.00042739,60]
[340386066,1729157078485,-746.44,0.00042739,60]
[340386067,1729157078521,-536.68474291,0.00042739,60]
[340386068,1729157078557,-500.0,0.00042739,60]
[340386069,1729157078593,-782.02,0.00042739,60]
[340386070,1729157078630,-500.0,0.00042739,60]
[340386071,1729157078667,-268.48431233,0.00042739,60]
[340386072,1729157078703,-500.0,0.00042739,60]
[340386073,1729157078739,-500.0,0.00042739,60]
[340386074,1729157078774,-500.0,0.00042739,60]
[340386075,1729157078813,-521.07371563,0.00042739,60]
[340386076,1729157078852,-500.0,0.00042739,60]
[340386077,1729157078889,-500.0,0.00042739,60]
[340386078,1729157078927,-500.0,0.00042739,60]
[340386079,1729157078964,-1159.47,0.00042739,60]
[340386080,1729157079002,-980.67,0.00042739,60]
[340386081,1729157079041,-500.0,0.00042739,60]
[340386082,1729157079077,-862.09,0.00042739,60]
[340386083,1729157079117,-500.0,0.00042739,60]
[340386084,1729157079153,-581.12,0.00042739,60]
[340386085,1729157079191,-500.0,0.00042739,60]
[340386086,1729157079229,-500.0,0.00042739,60]
[340386087,1729157079269,-789.83,0.00042739,60]
[340386088,1729157079307,-828.72,0.00042739,60]
[340386089,1729157079348,-500.0,0.00042739,60]
[340386090,1729157079387,-1003.18,0.00042739,60]
[340386091,1729157079424,-500.0,0.00042739,60]
[340386092,1729157079460,-500.0,0.00042739,60]
[340386093,1729157079496,-377.79366669,0.00042739,60]
[340386094,1729157079533,-500.0,0.00042739,60]
[340386095,1729157079569,-701.04,0.00042739,60]
[340386096,1729157079605,-500.0,0.00042739,60]
[340386097,1729157079642,-280.01347601,0.00042739,60]
[340386098,1729157079679,-500.0,0.00042739,60]
[340386099,1729157079715,-1357.32,0.00042739,60]
[340386100,1729157079752,-3000.0,0.00042739,60]
[340386101,1729157079788,-500.0,0.00042739,60]
[340386102,1729157079824,-1167.08,0.00042739,60]
[340386103,1729157079861,-500.0,0.00042739,60]
[340386104,1729157079901,-500.0,0.00042739,60]
[340386105,1729157079943,-500.0,0.00042739,60]
[340386106,1729157079986,-500.0,0.00042739,60]
[340386107,1729157080024,-635.34,0.00042739,60]
[340386108,1729157080066,-699.46,0.00042739,60]
[340386109,1729157080105,-500.0,0.00042739,60]
[340386110,1729157080144,-504.08,0.00042739,60]
[340386111,1729157080187,-892.38,0.00042739,60]
[340386112,1729157080226,-958.3,0.00042739,60]
[340386113,1729157080263,-500.0,0.00042739,60]
[340386114,1729157080300,-500.0,0.00042739,60]
[340386115,1729157080337,-854.83,0.00042739,60]
[340386116,1729157080374,-500.0,0.00042739,60]
[340386117,1729157080412,-500.0,0.00042739,60]
[340386118,1729157080450,-955.25,0.00042739,60]
[340386119,1729157080485,-500.0,0.00042739,60]
[340386120,1729157080522,-500.0,0.00042739,60]
[340386121,1729157080559,-1247.53,0.00042739,60]
[340386122,1729157080598,-750.89,0.00042739,60]
[340386123,1729157080635,-500.0,0.00042739,60]
[340386124,1729157080673,-828.59,0.00042739,60]
[340386125,1729157080709,-1164.53,0.00042739,60]
[340386126,1729157080745,-588.42,0.00042739,60]
[340386127,1729157080784,-500.0,0.00042739,60]
[340386128,1729157080825,-1967.01,0.00042739,60]
[340386129,1729157080864,-500.0,0.00042739,60]
[340386130,1729157080904,-943.8,0.00042739,60]
[340386131,1729157080944,-500.0,0.00042739,60]
[340386132,1729157080982,-1847.58,0.00042739,60]
[340386133,1729157081019,-1379.05,0.00042739,60]
[340386134,1729157081058,-500.0,0.00042739,60]
[340386135,1729157081096,-1143.49,0.00042739,60]
[340386136,1729157081133,-852.68,0.00042739,60]
[340386137,1729157081170,-500.0,0.00042739,60]
[340386138,1729157081209,-513.1940962,0.00042739,60]
[340386139,1729157081247,-1754.82,0.00042739,60]
[340386140,1729157081285,-500.0,0.00042739,60]
[340386141,1729157081322,-500.0,0.00042739,60]
[340386142,1729157081359,-500.0,0.00042739,60]
[340386143,1729157081396,-574.08,0.00042739,60]
[340386144,1729157081435,-16244.07,0.00042739,60]
[340386145,1729157081470,-500.0,0.00042739,60]
[340386146,1729157081506,-513.93965616,0.00042739,60]
[340386147,1729157081542,-527.22,0.00042739,60]
[340386148,1729157081580,-589.88,0.00042739,60]
[340386149,1729157081617,-1177.7,0.00042739,60]
[340386150,1729157081656,-467.1637331,0.00042739,60]
[340386151,1729157081877,-500.0,0.00042739,60]
[340386152,1729157081917,-1002.78,0.00042739,60]
[340386153,1729157081963,-500.0,0.00042739,60]
[340386154,1729157082002,-796.65,0.00042739,60]
[340386155,1729157082041,-767.61,0.00042739,60]
[340386156,1729157082078,-500.0,0.00042739,60]
[340386157,1729157082118,-500.0,0.00042739,60]
[340386158,1729157082158,-500.0,0.00042739,60]
[340386159,1729157082196,-502.32,0.00042739,60]
[340386160,1729157082235,-1996.04,0.00042739,60]
[340386161,1729157082271,-150.0,0.00042739,60]
[340386162,1729157082309,-668.0,0.00042739,60]
[340386163,1729157082346,-250.54985363,0.00042739,60]
[340386164,1729157082383,-214.96790386,0.00042739,60]
[340386165,1729157082421,-151.0,0.00042822,120]
[340386166,1729157082459,-158.15027694,0.00042898,120]
[340386167,1729157082495,-1110.47246925,0.00043,120]
[340386168,1729157082533,-3000.0,0.00043,120]
[340386169,1729157082570,-2309.81949234,0.00043,120]
[340386170,1729157082607,-1680.0476613,0.00043,120]
[340386171,1729157082643,-1000.0,0.00043,120]
[340386172,1729157082681,-25000.0,0.00043,120]
[340386173,1729157082720,-300.62960409,0.00043,120]
[340386174,1729157082757,-300.0,0.00043,120]
[340386175,1729157082793,-500.0,0.00043013,60]
[340386176,1729157082830,-500.0,0.00043013,60]
[340386177,1729157082866,-550.54332897,0.00043013,60]
[340386178,1729157082905,-500.0,0.00043013,60]
[340386179,1729157082944,-1327.31,0.00043013,60]
[340386180,1729157082981,-500.0,0.00043013,60]
[340386181,1729157083018,-517.74576221,0.00043013,60]
[340386182,1729157083056,-500.0,0.00043013,60]
[340386183,1729157083093,-500.0,0.00043013,60]
[340386184,1729157083132,-500.0,0.00043013,60]
[340386185,1729157083169,-500.0,0.00043013,60]
[340386186,1729157083209,-927.2,0.00043013,60]
[340386187,1729157083248,-247.0592384,0.00043013,60]
[340386188,1729157083292,-500.0,0.00043013,60]
[340386189,1729157083331,-500.0,0.00043013,60]
[340386190,1729157083370,-500.0,0.00043013,60]
[340386191,1729157083406,-500.0,0.00043013,60]
[340386192,1729157083444,-1003.98,0.00043013,60]
[340386193,1729157083481,-590.2,0.00043013,60]
[340386194,1729157083520,-500.0,0.00043013,60]
[340386195,1729157083557,-547.57043014,0.00043013,60]
[340386196,1729157083594,-500.0,0.00043013,60]
[340386197,1729157083630,-500.0,0.00043013,60]
[340386198,1729157083668,-979.17,0.00043013,60]
[340386199,1729157083705,-498.33632979,0.00043013,60]
[340386200,1729157083741,-217.468355,0.00043013,60]
[340386201,1729157083778,-500.0,0.00043013,60]
[340386202,1729157083816,-783.88,0.00043013,60]
[340386203,1729157083857,-500.0,0.00043013,60]
[340386204,1729157083896,-500.0,0.00043013,60]
[340386205,1729157083937,-501.41291788,0.00043013,60]
[340386206,1729157083975,-500.0,0.00043013,60]
[340386207,1729157084015,-630.62,0.00043013,60]
[340386208,1729157084053,-1089.03,0.00043013,60]
[340386209,1729157084094,-566.05,0.00043013,60]
[340386210,1729157084134,-500.0,0.00043013,60]
[340386211,1729157084174,-575.83,0.00043013,60]
[340386212,1729157084216,-500.0,0.00043013,60]
[340386213,1729157084258,-502.65638944,0.00043013,60]
[340386214,1729157084297,-201.6596905,0.00043013,60]
[340386215,1729157084336,-500.0,0.00043013,60]
[340386216,1729157084376,-556.92247442,0.00043013,60]
[340386217,1729157084418,-2442.96,0.00043013,60]
[340386218,1729157084456,-500.0,0.00043013,60]
[340386219,1729157084495,-2561.43,0.00043013,60]
[340386220,1729157084533,-827.35,0.00043013,60]
[340386221,1729157084573,-500.0,0.00043013,60]
[340386222,1729157084611,-500.0,0.00043013,60]
[340386223,1729157084647,-500.0,0.00043013,60]
[340386224,1729157084687,-230.25463561,0.00043013,60]
[340386225,1729157084727,-500.0,0.00043013,60]
[340386226,1729157084766,-500.0,0.00043013,60]
[340386227,1729157084805,-1109.25,0.00043013,60]
[340386228,1729157084841,-500.0,0.00043013,60]
[340386229,1729157084879,-866.24,0.00043013,60]
[340386230,1729157084920,-500.0,0.00043013,60]
[340386231,1729157084961,-1240.33,0.00043013,60]
[340386232,1729157085002,-500.0,0.00043013,60]
[340386233,1729157085043,-500.0,0.00043013,60]
[340386234,1729157085085,-500.0,0.00043013,60]
[340386235,1729157085126,-500.0,0.00043013,60]
[340386236,1729157085170,-500.0,0.00043013,60]
[340386237,1729157085213,-500.0,0.00043013,60]
[340386238,1729157085256,-500.0,0.00043013,60]
[340386239,1729157085301,-500.0,0.00043013,60]
[340386240,1729157085344,-973.81,0.00043013,60]
[340386241,1729157085386,-1458.33,0.00043013,60]
[340386242,1729157085428,-762.66,0.00043013,60]
[340386243,1729157085469,-500.0,0.00043013,60]
[340386244,1729157085511,-500.0,0.00043013,60]
[340386245,1729157085549,-481.26547111,0.00043013,60]
[340386246,1729157085588,-650.71,0.00043013,60]
[340386247,1729157085627,-835.54,0.00043013,60]
[340386248,1729157085667,-1182.57,0.00043013,60]
[340386249,1729157085706,-500.0,0.00043013,60]
[340386250,1729157085745,-898.16,0.00043013,60]
[340386251,1729157085782,-500.0,0.00043013,60]
[340386252,1729157085996,-759.22,0.00043013,60]
[340386253,1729157086037,-500.0,0.00043013,60]
[340386254,1729157086075,-500.0,0.00043013,60]
[340386255,1729157086118,-328.45986975,0.00043013,60]
[340386256,1729157086156,-829.97,0.00043013,120]
[340386257,1729157086193,-500.0,0.00043013,60]
[340386258,1729157086230,-2230.79,0.00043013,60]
[340386259,1729157086270,-500.0,0.00043013,60]
[340386260,1729157086308,-500.0,0.00043013,60]
[340386261,1729157086345,-500.0,0.00043013,60]
[340386262,1729157086383,-500.0,0.00043013,60]
[340386263,1729157086419,-500.0,0.00043013,60]
[340386264,1729157086455,-512.86,0.00043013,60]
[340386265,1729157086495,-391.82038543,0.00043013,60]
[340386266,1729157086535,-505.10333639,0.00043013,60]
[340386267,1729157086575,-1055.28,0.00043013,60]
[340386268,1729157086612,-861.18,0.00043013,60]
[340386269,1729157086648,-905.29,0.00043013,60]
[340386270,1729157086686,-500.0,0.00043013,60]
[340386271,1729157086722,-1174.01,0.00043013,60]
[340386272,1729157086759,-522.36,0.00043013,60]
[340386273,1729157086797,-619.52300439,0.00043013,60]
[340386274,1729157086836,-593.86,0.00043013,60]
[340386275,1729157086877,-4800.3,0.00043013,60]
[340386276,1729157086918,-548.64,0.00043013,60]
[340386277,1729157086962,-5161.34,0.00043013,60]
[340386278,1729157087001,-971.22,0.00043013,60]
[340386279,1729157087043,-500.0,0.00043013,60]
[340386280,1729157087080,-1038.67,0.00043013,60]
[340386281,1729157087119,-500.0,0.00043013,60]
[340386282,1729157087157,-1088.09,0.00043013,60]
[340386283,1729157087195,-500.0,0.00043013,60]
[340386284,1729157087232,-2534.2,0.00043013,60]
[340386285,1729157087270,-966.99,0.00043013,60]
[340386286,1729157087307,-876.41,0.00043013,60]
[340386287,1729157087343,-500.0,0.00043013,60]
[340386288,1729157087379,-3258.44,0.00043013,60]
[340386289,1729157087415,-500.0,0.00043013,60]
[340386290,1729157087453,-545.8455692,0.00043013,60]
[340386291,1729157087490,-500.0,0.00043013,60]
[340386292,1729157087530,-551.32978063,0.00043013,60]
[340386293,1729157087566,-500.0,0.00043013,60]
[340386294,1729157087603,-2603.18,0.00043013,60]
[340386295,1729157087640,-500.0,0.00043013,60]
[340386296,1729157087676,-1334.81,0.00043013,60]
[340386297,1729157087712,-988.07,0.00043013,60]
[340386298,1729157087747,-746.44,0.00043013,60]
[340386299,1729157087784,-635.09326884,0.00043013,60]
[340386300,1729157087821,-782.02,0.00043013,60]
[340386301,1729157087860,-500.0,0.00043013,60]
[340386302,1729157087901,-500.0,0.00043013,60]
[340386303,1729157087944,-500.0,0.00043013,60]
[340386304,1729157087987,-500.0,0.00043013,60]
[340386305,1729157088028,-500.0,0.00043013,60]
[340386306,1729157088066,-500.0,0.00043013,60]
[340386307,1729157088117,-500.0,0.00043013,60]
[340386308,1729157088155,-1159.47,0.00043013,60]
[340386309,1729157088195,-500.0,0.00043013,60]
[340386310,1729157088235,-862.09,0.00043013,60]
[340386311,1729157088274,-980.67,0.00043013,60]
[340386312,1729157088313,-395.59330126,0.00043013,60]
[340386313,1729157088352,-581.12,0.00043013,60]
[340386314,1729157088389,-500.0,0.00043013,60]
[340386315,1729157088428,-500.0,0.00043013,60]
[340386316,1729157088472,-789.83,0.00043013,60]
[340386317,1729157088512,-828.72,0.00043013,60]
[340386318,1729157088552,-500.0,0.00043013,60]
[340386319,1729157088592,-1003.18,0.00043013,60]
[340386320,1729157088631,-500.0,0.00043013,60]
[340386321,1729157088669,-552.58933002,0.00043013,60]
[340386322,1729157088706,-212.24350804,0.00043013,60]
[340386323,1729157088744,-701.04,0.00043013,60]
[340386324,1729157088781,-283.42183383,0.00043013,60]
[340386325,1729157088820,-500.0,0.00043013,60]
[340386326,1729157088860,-1357.32,0.00043013,60]
[340386327,1729157088899,-3000.0,0.00043013,60]
[340386328,1729157088941,-500.0,0.00043013,60]
[340386329,1729157088980,-1167.08,0.00043013,60]
[340386330,1729157089017,-491.4209269,0.00043013,60]
[340386331,1729157089057,-500.0,0.00043013,60]
[340386332,1729157089097,-500.0,0.00043013,60]
[340386333,1729157089141,-500.0,0.00043013,60]
[340386334,1729157089184,-635.34,0.00043013,60]
[340386335,1729157089226,-699.46,0.00043013,60]
[340386336,1729157089267,-500.0,0.00043013,60]
[340386337,1729157089307,-504.08,0.00043013,60]
[340386338,1729157089349,-892.38,0.00043013,60]
[340386339,1729157089389,-958.3,0.00043013,60]
[340386340,1729157089427,-500.0,0.00043013,60]
[340386341,1729157089466,-500.0,0.00043013,60]
[340386342,1729157089504,-854.83,0.00043013,60]
[340386343,1729157089541,-500.0,0.00043013,60]
[340386344,1729157089594,-500.0,0.00043013,60]
[340386345,1729157089635,-955.25,0.00043013,60]
[340386346,1729157089673,-500.0,0.00043013,60]
[340386347,1729157089714,-500.0,0.00043013,60]
[340386348,1729157089755,-1247.53,0.00043013,60]
[340386349,1729157089998,-750.89,0.00043013,60]
[340386350,1729157090059,-500.0,0.00043013,60]
[340386351,1729157090100,-828.59,0.00043013,60]
[340386352,1729157090143,-1164.53,0.00043013,60]
[340386353,1729157090191,-588.42,0.00043013,60]
[340386354,1729157090234,-500.0,0.00043013,60]
[340386355,1729157090276,-1967.01,0.00043013,60]
[340386356,1729157090318,-500.0,0.00043013,60]
[340386357,1729157090356,-943.8,0.00043013,60]
[340386358,1729157090404,-500.0,0.00043013,60]
[340386359,1729157090446,-1847.58,0.00043013,60]
[340386360,1729157090486,-1379.05,0.00043013,60]
[340386361,1729157090526,-500.0,0.00043013,60]
[340386362,1729157090568,-1143.49,0.00043013,60]
[340386363,1729157090608,-852.68,0.00043013,60]
[340386364,1729157090652,-500.0,0.00043013,60]
[340386365,1729157090700,-1754.82,0.00043013,60]
[340386366,1729157090743,-500.0,0.00043013,60]
[340386367,1729157090786,-500.0,0.00043013,60]
[340386368,1729157090827,-500.0,0.00043013,60]
[340386369,1729157090868,-574.08,0.00043013,60]
[340386370,1729157090911,-16244.07,0.00043013,60]
[340386371,1729157090951,-501.12650144,0.00043013,60]
[340386372,1729157090991,-527.22,0.00043013,60]
[340386373,1729157091031,-589.88,0.00043013,60]
[340386374,1729157091070,-1177.7,0.00043013,60]
[340386375,1729157091111,-500.0,0.00043013,60]
[340386376,1729157091152,-1002.78,0.00043013,60]
[340386377,1729157091195,-500.0,0.00043013,60]
[340386378,1729157091236,-796.65,0.00043013,60]
[340386379,1729157091276,-767.61,0.00043013,60]
[340386380,1729157091317,-319.11391225,0.00043013,60]
[340386381,1729157091357,-500.0,0.00043013,60]
[340386382,1729157091397,-304.40927594,0.00043013,60]
[340386383,1729157091441,-502.32,0.00043013,60]
[340386384,1729157091480,-1996.04,0.00043013,60]
[340386385,1729157091517,-668.0,0.00043013,60]
[340386386,1729157091554,-500.0,0.00043287,60]
[340386387,1729157091592,-500.0,0.00043287,60]
[340386388,1729157091629,-500.0,0.00043287,60]
[340386389,1729157091668,-1327.31,0.00043287,60]
[340386390,1729157091704,-500.0,0.00043287,60]
[340386391,1729157091742,-553.22825884,0.00043287,60]
[340386392,1729157091780,-500.0,0.00043287,60]
[340386393,1729157091819,-500.0,0.00043287,60]
[340386394,1729157091858,-500.0,0.00043287,60]
[340386395,1729157091898,-927.2,0.00043287,60]
[340386396,1729157091937,-486.82499252,0.00043287,60]
[340386397,1729157091977,-500.0,0.00043287,60]
[340386398,1729157092015,-500.0,0.00043287,60]
[340386399,1729157092054,-500.0,0.00043287,60]
[340386400,1729157092092,-1003.98,0.00043287,60]
[340386401,1729157092133,-590.2,0.00043287,60]
[340386402,1729157092173,-500.0,0.00043287,60]
[340386403,1729157092214,-500.0,0.00043287,60]
[340386404,1729157092254,-500.0,0.00043287,60]
[340386405,1729157092297,-979.17,0.00043287,60]
[340386406,1729157092335,-324.16464963,0.00043287,60]
[340386407,1729157092374,-783.88,0.00043287,60]
[340386408,1729157092414,-224.43425735,0.00043287,60]
[340386409,1729157092452,-630.62,0.00043287,60]
[340386410,1729157092491,-1089.03,0.00043287,60]
[340386411,1729157092529,-566.05,0.00043287,60]
[340386412,1729157092570,-500.0,0.00043287,60]
[340386413,1729157092607,-575.83,0.00043287,60]
[340386414,1729157092646,-500.0,0.00043287,60]
[340386415,1729157092683,-2442.96,0.00043287,60]
[340386416,1729157092720,-633.50642382,0.00043287,60]
[340386417,1729157092757,-2561.43,0.00043287,60]
[340386418,1729157092796,-827.35,0.00043287,60]
[340386419,1729157092833,-623.08871825,0.00043287,60]
[340386420,1729157092871,-500.0,0.00043287,60]
[340386421,1729157092915,-500.0,0.00043287,60]
[340386422,1729157092953,-500.0,0.00043287,60]
[340386423,1729157092990,-481.59457512,0.00043287,60]
[340386424,1729157093027,-1109.25,0.00043287,60]
[340386425,1729157093064,-500.0,0.00043287,60]
[340386426,1729157093104,-866.24,0.00043287,60]
[340386427,1729157093143,-500.0,0.00043287,60]
[340386428,1729157093182,-1240.33,0.00043287,60]
[340386429,1729157093223,-500.0,0.00043287,60]
[340386430,1729157093279,-500.0,0.00043287,60]
[340386431,1729157093323,-626.02103849,0.00043287,60]
[340386432,1729157093364,-500.0,0.00043287,60]
[340386433,1729157093405,-500.0,0.00043287,60]
[340386434,1729157093444,-500.0,0.00043287,60]
[340386435,1729157093484,-485.34529327,0.00043287,60]
[340386436,1729157093525,-500.0,0.00043287,60]
[340386437,1729157093564,-973.81,0.00043287,60]